[Event "Titled Tuesday Blitz August 22 Early 2023"]
[White "Mihailidis, Anastasios"]
[Black "Kiseleva, Arina"]
[WhiteFideId "4205588"]
[BlackFideId "4164989"]
[WhiteElo "2512"]
[BlackElo "2225"]
[Result "1-0"]
[Round "5"]
[TimeControl "180+1"]
[Date "2023.08.22"]
[WhiteClock "0:00:35"]
[BlackClock "0:00:02"]
[Board "229"]

1. e4 {[%clk 0:03:00]}  c6 {[%clk 0:03:00]} 2. d4 {[%clk 0:03:00]}  d5 {[%clk 0:03:00]} 3. exd5 {[%clk 0:03:00]}  cxd5 {[%clk 0:03:01]} 4. Bd3 {[%clk 0:03:01]}  Nc6 {[%clk 0:03:00]} 5. c3 {[%clk 0:03:01]}  Nf6 {[%clk 0:02:59]} 6. Bf4 {[%clk 0:03:01]}  g6 {[%clk 0:02:58]} 7. Nd2 {[%clk 0:02:58]}  Bf5 {[%clk 0:02:56]} 8. Bxf5 {[%clk 0:02:57]}  gxf5 {[%clk 0:02:56]} 9. Ngf3 {[%clk 0:02:58]}  e6 {[%clk 0:02:55]} 10. Ne5 {[%clk 0:02:56]}  Ne4 {[%clk 0:02:44]} 11. Nxe4 {[%clk 0:02:55]}  fxe4 {[%clk 0:02:43]} 12. Qh5 {[%clk 0:02:49]}  Nxe5 {[%clk 0:02:10]} 13. Bxe5 {[%clk 0:02:47]}  Rg8 {[%clk 0:02:10]} 14. g3 {[%clk 0:02:46]}  h6 {[%clk 0:02:03]} 15. O-O {[%clk 0:02:40]}  Qg5 {[%clk 0:01:47]} 16. Qh3 {[%clk 0:02:34]}  Bg7 {[%clk 0:01:40]} 17. Bf4 {[%clk 0:02:30]}  Qg6 {[%clk 0:01:39]} 18. Rae1 {[%clk 0:02:27]}  h5 {[%clk 0:01:37]} 19. f3 {[%clk 0:02:25]}  exf3 {[%clk 0:01:35]} 20. Rxf3 {[%clk 0:02:25]}  Qg4 {[%clk 0:01:35]} 21. Qg2 {[%clk 0:02:14]}  O-O-O {[%clk 0:01:29]} 22. h3 {[%clk 0:02:03]}  Qg6 {[%clk 0:01:27]} 23. h4 {[%clk 0:02:03]}  Bf6 {[%clk 0:01:25]} 24. Qh3 {[%clk 0:02:01]}  Qg4 {[%clk 0:01:22]} 25. Qxg4 {[%clk 0:02:01]}  Rxg4 {[%clk 0:01:16]} 26. Kh2 {[%clk 0:01:58]}  Rdg8 {[%clk 0:00:54]} 27. Re2 {[%clk 0:01:48]}  Bxh4 {[%clk 0:00:50]} 28. gxh4 {[%clk 0:01:46]}  Rxh4+ {[%clk 0:00:50]} 29. Rh3 {[%clk 0:01:42]}  Rxf4 {[%clk 0:00:51]} 30. Rxh5 {[%clk 0:01:42]}  Rfg4 {[%clk 0:00:42]} 31. Rh7 {[%clk 0:01:40]}  b5 {[%clk 0:00:38]} 32. Kh3 {[%clk 0:01:35]}  Rg1 {[%clk 0:00:37]} 33. Kh2 {[%clk 0:01:34]}  R1g6 {[%clk 0:00:33]} 34. Rf2 {[%clk 0:01:31]}  f5 {[%clk 0:00:23]} 35. b3 {[%clk 0:01:25]}  a5 {[%clk 0:00:22]} 36. Rc2 {[%clk 0:01:23]}  Kb8 {[%clk 0:00:22]} 37. c4 {[%clk 0:01:22]}  dxc4 {[%clk 0:00:21]} 38. bxc4 {[%clk 0:01:23]}  b4 {[%clk 0:00:15]} 39. c5 {[%clk 0:01:16]}  Rg4 {[%clk 0:00:15]} 40. c6 {[%clk 0:01:14]}  Rxd4 {[%clk 0:00:13]} 41. Rb7+ {[%clk 0:01:11]}  Kc8 {[%clk 0:00:12]} 42. Rh7 {[%clk 0:01:02]}  Rgd8 {[%clk 0:00:11]} 43. Rc5 {[%clk 0:00:50]}  a4 {[%clk 0:00:04]} 44. Ra5 {[%clk 0:00:46]}  Rd2+ {[%clk 0:00:04]} 45. Kg3 {[%clk 0:00:46]}  Rg8+ {[%clk 0:00:02]} 46. Kf4 {[%clk 0:00:46]}  Kb8 {[%clk 0:00:02]} 47. c7+ {[%clk 0:00:40]}  Kb7 {[%clk 0:00:03]} 48. Rb5+ {[%clk 0:00:40]}  Kc6 {[%clk 0:00:02]} 49. Rxb4 {[%clk 0:00:35]}  Rg4+ {[%clk 0:00:02]} 50. Ke5 {[%clk 0:00:36]}  Rxb4 {[%clk 0:00:03]} 51. c8=Q+ {[%clk 0:00:36]}  Kb5 {[%clk 0:00:02]} 52. Rb7+ {[%clk 0:00:35]}  Ka5 {[%clk 0:00:02]} 53. Qa8# {[%clk 0:00:35]} 1-0


[Site "https://www.chess.com"]

[Event "Titled Tuesday Blitz August 22 Early 2023"]
[White "Zhigalko, Sergei"]
[Black "Sadhwani, Raunak"]
[WhiteFideId "13502956"]
[BlackFideId "35093487"]
[WhiteElo "2943"]
[BlackElo "3034"]
[Result "0-1"]
[Round "6"]
[TimeControl "180+1"]
[Date "2023.08.22"]
[WhiteClock "0:00:00"]
[BlackClock "0:00:08"]
[Board "3"]

1. e4 {[%clk 0:03:00]}  e5 {[%clk 0:03:00]} 2. Nf3 {[%clk 0:03:01]}  Nc6 {[%clk 0:03:00]} 3. Bb5 {[%clk 0:03:01]}  Nf6 {[%clk 0:03:01]} 4. O-O {[%clk 0:02:58]}  Nxe4 {[%clk 0:03:00]} 5. d4 {[%clk 0:02:58]}  Nd6 {[%clk 0:03:01]} 6. Bxc6 {[%clk 0:02:59]}  dxc6 {[%clk 0:03:02]} 7. dxe5 {[%clk 0:03:00]}  Nf5 {[%clk 0:03:02]} 8. Qxd8+ {[%clk 0:03:00]}  Kxd8 {[%clk 0:03:03]} 9. Nc3 {[%clk 0:03:01]}  Bd7 {[%clk 0:03:01]} 10. h3 {[%clk 0:03:01]}  h6 {[%clk 0:02:58]} 11. b3 {[%clk 0:02:52]}  Kc8 {[%clk 0:02:57]} 12. Bb2 {[%clk 0:02:50]}  b6 {[%clk 0:02:56]} 13. Rad1 {[%clk 0:02:48]}  a5 {[%clk 0:02:52]} 14. a4 {[%clk 0:02:47]}  Be6 {[%clk 0:02:27]} 15. Ne2 {[%clk 0:02:42]}  Bd5 {[%clk 0:02:11]} 16. Nfd4 {[%clk 0:02:24]}  Nxd4 {[%clk 0:02:10]} 17. Nxd4 {[%clk 0:02:24]}  Bc5 {[%clk 0:01:59]} 18. Rfe1 {[%clk 0:01:37]}  Bxd4 {[%clk 0:01:53]} 19. Rxd4 {[%clk 0:01:23]}  Be6 {[%clk 0:01:53]} 20. f3 {[%clk 0:00:49]}  Kb7 {[%clk 0:01:51]} 21. Kf2 {[%clk 0:00:33]}  c5 {[%clk 0:01:46]} 22. Rd2 {[%clk 0:00:29]}  c4 {[%clk 0:01:46]} 23. Re3 {[%clk 0:00:27]}  cxb3 {[%clk 0:01:46]} 24. cxb3 {[%clk 0:00:27]}  Rad8 {[%clk 0:01:42]} 25. Ke1 {[%clk 0:00:27]}  h5 {[%clk 0:01:35]} 26. h4 {[%clk 0:00:24]}  Rxd2 {[%clk 0:01:22]} 27. Kxd2 {[%clk 0:00:24]}  Rd8+ {[%clk 0:01:23]} 28. Kc1 {[%clk 0:00:21]}  c5 {[%clk 0:01:22]} 29. Kc2 {[%clk 0:00:14]}  g6 {[%clk 0:01:18]} 30. Bc3 {[%clk 0:00:08]}  Kc6 {[%clk 0:01:18]} 31. Be1 {[%clk 0:00:06]}  Bf5+ {[%clk 0:01:17]} 32. Kc1 {[%clk 0:00:06]}  Rd4 {[%clk 0:01:13]} 33. g3 {[%clk 0:00:04]}  Be6 {[%clk 0:01:02]} 34. Kc2 {[%clk 0:00:03]}  Rd8 {[%clk 0:00:46]} 35. Bc3 {[%clk 0:00:04]}  Rg8 {[%clk 0:00:43]} 36. Be1 {[%clk 0:00:03]}  g5 {[%clk 0:00:35]} 37. hxg5 {[%clk 0:00:03]}  Rxg5 {[%clk 0:00:36]} 38. Kb2 {[%clk 0:00:02]}  Rg8 {[%clk 0:00:27]} 39. Kc2 {[%clk 0:00:02]}  Rd8 {[%clk 0:00:26]} 40. Bc3 {[%clk 0:00:02]}  Bf5+ {[%clk 0:00:26]} 41. Kc1 {[%clk 0:00:03]}  Be6 {[%clk 0:00:22]} 42. Kc2 {[%clk 0:00:03]}  c4 {[%clk 0:00:16]} 43. bxc4 {[%clk 0:00:03]}  Bxc4 {[%clk 0:00:16]} 44. Be1 {[%clk 0:00:03]}  Be6 {[%clk 0:00:16]} 45. Rc3+ {[%clk 0:00:03]}  Kb7 {[%clk 0:00:16]} 46. Bf2 {[%clk 0:00:02]}  Rd5 {[%clk 0:00:16]} 47. Rb3 {[%clk 0:00:02]}  Rxe5 {[%clk 0:00:11]} 48. Rxb6+ {[%clk 0:00:02]}  Kc7 {[%clk 0:00:11]} 49. Rb5 {[%clk 0:00:02]}  Re2+ {[%clk 0:00:11]} 50. Kd1 {[%clk 0:00:01]}  Rxf2 {[%clk 0:00:12]} 51. Rxh5 {[%clk 0:00:01]}  Rxf3 {[%clk 0:00:13]} 52. Rxa5 {[%clk 0:00:01]}  Rxg3 {[%clk 0:00:13]} 53. Kc2 {[%clk 0:00:02]}  Kb6 {[%clk 0:00:12]} 54. Rb5+ {[%clk 0:00:02]}  Ka6 {[%clk 0:00:12]} 55. Kb2 {[%clk 0:00:03]}  Rd3 {[%clk 0:00:10]} 56. Rc5 {[%clk 0:00:02]}  Rd5 {[%clk 0:00:10]} 57. Rc7 {[%clk 0:00:01]}  Ka5 {[%clk 0:00:10]} 58. Kc3 {[%clk 0:00:01]}  Kxa4 {[%clk 0:00:09]} 59. Rb7 {[%clk 0:00:01]}  Rc5+ {[%clk 0:00:09]} 60. Kd4 {[%clk 0:00:01]}  Rb5 {[%clk 0:00:09]} 61. Ra7+ {[%clk 0:00:02]}  Kb4 {[%clk 0:00:10]} 62. Rc7 {[%clk 0:00:02]}  Rd5+ {[%clk 0:00:10]} 63. Ke4 {[%clk 0:00:02]}  Rd7 {[%clk 0:00:11]} 64. Rc1 {[%clk 0:00:02]}  Kb5 {[%clk 0:00:11]} 65. Ke5 {[%clk 0:00:03]}  Rd5+ {[%clk 0:00:11]} 66. Kf6 {[%clk 0:00:03]}  Rc5 {[%clk 0:00:12]} 67. Rd1 {[%clk 0:00:02]}  Kc6 {[%clk 0:00:12]} 68. Ke7 {[%clk 0:00:03]}  Rf5 {[%clk 0:00:11]} 69. Rd2 {[%clk 0:00:02]}  Bc4 {[%clk 0:00:10]} 70. Rd4 {[%clk 0:00:02]}  Rc5 {[%clk 0:00:11]} 71. Kf6 {[%clk 0:00:01]}  Bd5 {[%clk 0:00:09]} 72. Ke7 {[%clk 0:00:02]}  f5 {[%clk 0:00:07]} 73. Kf6 {[%clk 0:00:02]}  Be4 {[%clk 0:00:08]} 74. Kg5 {[%clk 0:00:03]}  Kb5 {[%clk 0:00:08]} 75. Kf4 {[%clk 0:00:03]}  Rc3 {[%clk 0:00:08]} 76. Ke5 {[%clk 0:00:02]}  Kc5 {[%clk 0:00:09]} 77. Rd8 {[%clk 0:00:02]}  Re3 {[%clk 0:00:09]} 78. Rc8+ {[%clk 0:00:02]}  Kb4 {[%clk 0:00:09]} 79. Kd4 {[%clk 0:00:02]}  Rd3+ {[%clk 0:00:10]} 80. Ke5 {[%clk 0:00:03]}  Rd5+ {[%clk 0:00:10]} 81. Kf4 {[%clk 0:00:03]}  Rc5 {[%clk 0:00:11]} 82. Rd8 {[%clk 0:00:02]}  Kc3 {[%clk 0:00:12]} 83. Ke3 {[%clk 0:00:03]}  Bc2 {[%clk 0:00:11]} 84. Kf4 {[%clk 0:00:02]}  Rc4+ {[%clk 0:00:12]} 85. Ke3 {[%clk 0:00:02]}  Re4+ {[%clk 0:00:10]} 86. Kf3 {[%clk 0:00:02]}  Bd3 {[%clk 0:00:10]} 87. Ra8 {[%clk 0:00:01]}  Kd2 {[%clk 0:00:09]} 88. Ra2+ {[%clk 0:00:02]}  Bc2 {[%clk 0:00:10]} 89. Rb2 {[%clk 0:00:00]}  Ra4 {[%clk 0:00:08]} 0-1


[Site "https://www.chess.com"]

[Event "Titled Tuesday Blitz August 22 Early 2023"]
[White "Nihal Sarin"]
[Black "Paravyan, David"]
[WhiteFideId "25092340"]
[BlackFideId "4194985"]
[WhiteElo "3130"]
[BlackElo "2973"]
[Result "1-0"]
[Round "6"]
[TimeControl "180+1"]
[Date "2023.08.22"]
[WhiteClock "0:00:06"]
[BlackClock "0:00:00"]
[Board "6"]

1. c4 {[%clk 0:03:00]}  c5 {[%clk 0:02:59]} 2. Nc3 {[%clk 0:03:00]}  Nc6 {[%clk 0:02:58]} 3. g3 {[%clk 0:03:00]}  g6 {[%clk 0:02:58]} 4. Bg2 {[%clk 0:03:01]}  Bg7 {[%clk 0:02:59]} 5. d3 {[%clk 0:03:02]}  Nf6 {[%clk 0:02:57]} 6. e3 {[%clk 0:03:00]}  O-O {[%clk 0:02:57]} 7. Nge2 {[%clk 0:03:01]}  b6 {[%clk 0:02:58]} 8. O-O {[%clk 0:03:01]}  Bb7 {[%clk 0:02:58]} 9. b3 {[%clk 0:03:01]}  Na5 {[%clk 0:02:58]} 10. Bxb7 {[%clk 0:03:00]}  Nxb7 {[%clk 0:02:59]} 11. e4 {[%clk 0:03:00]}  e6 {[%clk 0:02:59]} 12. f4 {[%clk 0:02:54]}  d5 {[%clk 0:02:58]} 13. e5 {[%clk 0:02:49]}  Ne8 {[%clk 0:02:48]} 14. cxd5 {[%clk 0:02:48]}  exd5 {[%clk 0:02:48]} 15. d4 {[%clk 0:02:49]}  Nc7 {[%clk 0:02:47]} 16. Be3 {[%clk 0:02:47]}  Qd7 {[%clk 0:02:39]} 17. Qd3 {[%clk 0:02:42]}  f5 {[%clk 0:02:34]} 18. Rfd1 {[%clk 0:02:38]}  Rad8 {[%clk 0:02:32]} 19. Rac1 {[%clk 0:02:39]}  Ne6 {[%clk 0:02:30]} 20. dxc5 {[%clk 0:02:36]}  Nbxc5 {[%clk 0:02:00]} 21. Qxd5 {[%clk 0:02:32]}  Qf7 {[%clk 0:02:01]} 22. Qc4 {[%clk 0:02:31]}  g5 {[%clk 0:01:57]} 23. Bxc5 {[%clk 0:02:05]}  bxc5 {[%clk 0:01:58]} 24. Nb5 {[%clk 0:02:04]}  Kh8 {[%clk 0:01:42]} 25. Nd6 {[%clk 0:01:43]}  Qg6 {[%clk 0:01:41]} 26. Kh1 {[%clk 0:01:43]}  h5 {[%clk 0:01:38]} 27. Qd5 {[%clk 0:01:25]}  Kh7 {[%clk 0:01:38]} 28. Qf3 {[%clk 0:01:22]}  h4 {[%clk 0:01:32]} 29. gxh4 {[%clk 0:01:19]}  g4 {[%clk 0:01:27]} 30. Qd5 {[%clk 0:01:05]}  Bh6 {[%clk 0:00:37]} 31. Rf1 {[%clk 0:00:51]}  Rd7 {[%clk 0:00:04]} 32. h5 {[%clk 0:00:40]}  Qg8 {[%clk 0:00:05]} 33. Rc4 {[%clk 0:00:39]}  Rg7 {[%clk 0:00:04]} 34. Ng3 {[%clk 0:00:39]}  Nd4 {[%clk 0:00:02]} 35. Rxc5 {[%clk 0:00:35]}  Qxd5+ {[%clk 0:00:01]} 36. Rxd5 {[%clk 0:00:36]}  Nf3 {[%clk 0:00:02]} 37. Ndxf5 {[%clk 0:00:33]}  Rc7 {[%clk 0:00:02]} 38. Ne3 {[%clk 0:00:18]}  Bxf4 {[%clk 0:00:02]} 39. Nxg4 {[%clk 0:00:18]}  Bxg3 {[%clk 0:00:02]} 40. hxg3 {[%clk 0:00:16]}  Rc2 {[%clk 0:00:02]} 41. Rd7+ {[%clk 0:00:08]}  Kh8 {[%clk 0:00:03]} 42. Rf2 {[%clk 0:00:09]}  Rxf2 {[%clk 0:00:02]} 43. Nxf2 {[%clk 0:00:08]}  Nxe5 {[%clk 0:00:03]} 44. Rd5 {[%clk 0:00:08]}  Nf7 {[%clk 0:00:01]} 45. Rf5 {[%clk 0:00:08]}  Kg7 {[%clk 0:00:02]} 46. Ng4 {[%clk 0:00:08]}  Rd8 {[%clk 0:00:02]} 47. Ra5 {[%clk 0:00:08]}  Rd7 {[%clk 0:00:01]} 48. Kg2 {[%clk 0:00:08]}  Rd2+ {[%clk 0:00:01]} 49. Kf3 {[%clk 0:00:08]}  Rd3+ {[%clk 0:00:01]} 50. Kg2 {[%clk 0:00:08]}  Rd7 {[%clk 0:00:02]} 51. Kh3 {[%clk 0:00:08]}  Re7 {[%clk 0:00:02]} 52. b4 {[%clk 0:00:08]}  Rb7 {[%clk 0:00:02]} 53. a3 {[%clk 0:00:08]}  Re7 {[%clk 0:00:02]} 54. Kh4 {[%clk 0:00:08]}  Re1 {[%clk 0:00:03]} 55. Kh3 {[%clk 0:00:07]}  Re7 {[%clk 0:00:03]} 56. Ra6 {[%clk 0:00:07]}  Rc7 {[%clk 0:00:04]} 57. Nf6 {[%clk 0:00:06]}  Rc1 {[%clk 0:00:02]} 58. Ne4 {[%clk 0:00:05]}  Rc4 {[%clk 0:00:02]} 59. Nd6 {[%clk 0:00:04]}  Ng5+ {[%clk 0:00:02]} 60. Kg2 {[%clk 0:00:05]}  Rc2+ {[%clk 0:00:03]} 61. Kf1 {[%clk 0:00:05]}  Nf3 {[%clk 0:00:03]} 62. Nf5+ {[%clk 0:00:05]}  Kf7 {[%clk 0:00:03]} 63. h6 {[%clk 0:00:05]}  Rd2 {[%clk 0:00:03]} 64. Nh4 {[%clk 0:00:05]}  Nh2+ {[%clk 0:00:02]} 65. Ke1 {[%clk 0:00:05]}  Ra2 {[%clk 0:00:00]} 66. h7 {[%clk 0:00:06]} 1-0


[Site "https://www.chess.com"]

[Event "Titled Tuesday Blitz August 22 Early 2023"]
[White "Esipenko, Andrey"]
[Black "So, Wesley"]
[WhiteFideId "24175439"]
[BlackFideId "5202213"]
[WhiteElo "2949"]
[BlackElo "3112"]
[Result "1-0"]
[Round "6"]
[TimeControl "180+1"]
[Date "2023.08.22"]
[WhiteClock "0:00:39"]
[BlackClock "0:00:26"]
[Board "7"]

1. e4 {[%clk 0:02:58]}  c5 {[%clk 0:02:46]} 2. Nf3 {[%clk 0:02:55]}  d6 {[%clk 0:02:43]} 3. Bb5+ {[%clk 0:02:54]}  Nd7 {[%clk 0:02:41]} 4. O-O {[%clk 0:02:47]}  a6 {[%clk 0:02:41]} 5. Bxd7+ {[%clk 0:02:47]}  Bxd7 {[%clk 0:02:42]} 6. c3 {[%clk 0:02:47]}  Nf6 {[%clk 0:02:41]} 7. Re1 {[%clk 0:02:46]}  Bc6 {[%clk 0:02:37]} 8. d4 {[%clk 0:02:46]}  Bxe4 {[%clk 0:02:34]} 9. Bg5 {[%clk 0:02:45]}  Bxf3 {[%clk 0:02:24]} 10. Qxf3 {[%clk 0:02:44]}  d5 {[%clk 0:02:23]} 11. Bxf6 {[%clk 0:02:14]}  gxf6 {[%clk 0:02:24]} 12. Qxf6 {[%clk 0:02:11]}  Rg8 {[%clk 0:02:24]} 13. Nd2 {[%clk 0:02:11]}  Rg6 {[%clk 0:02:09]} 14. Qf5 {[%clk 0:01:54]}  e6 {[%clk 0:02:05]} 15. Nf3 {[%clk 0:01:54]}  Qf6 {[%clk 0:02:02]} 16. Qxd5 {[%clk 0:01:52]}  Rb8 {[%clk 0:01:36]} 17. g3 {[%clk 0:01:42]}  cxd4 {[%clk 0:01:35]} 18. cxd4 {[%clk 0:01:41]}  Be7 {[%clk 0:01:23]} 19. Qe4 {[%clk 0:01:41]}  h5 {[%clk 0:01:22]} 20. Rac1 {[%clk 0:01:36]}  Rg4 {[%clk 0:01:20]} 21. Qe3 {[%clk 0:01:32]}  Bd6 {[%clk 0:01:19]} 22. d5 {[%clk 0:01:27]}  Bf4 {[%clk 0:01:17]} 23. Qc3 {[%clk 0:01:20]}  Ke7 {[%clk 0:01:03]} 24. dxe6 {[%clk 0:01:05]}  fxe6 {[%clk 0:00:59]} 25. Nd4 {[%clk 0:00:41]}  Bxg3 {[%clk 0:00:26]} 26. hxg3 {[%clk 0:00:39]} 1-0


[Site "https://www.chess.com"]

[Event "Titled Tuesday Blitz August 22 Early 2023"]
[White "Grischuk, Alexander"]
[Black "Demchenko, Anton"]
[WhiteFideId "4126025"]
[BlackFideId "4160258"]
[WhiteElo "3040"]
[BlackElo "2935"]
[Result "0-1"]
[Round "6"]
[TimeControl "180+1"]
[Date "2023.08.22"]
[WhiteClock "0:00:00"]
[BlackClock "0:00:02"]
[Board "8"]

1. d4 {[%clk 0:03:00]}  Nf6 {[%clk 0:03:00]} 2. Nf3 {[%clk 0:03:00]}  d6 {[%clk 0:03:00]} 3. g3 {[%clk 0:02:52]}  g6 {[%clk 0:02:59]} 4. Bg2 {[%clk 0:02:52]}  Bg7 {[%clk 0:03:00]} 5. c4 {[%clk 0:02:53]}  O-O {[%clk 0:03:00]} 6. Nc3 {[%clk 0:02:53]}  Nbd7 {[%clk 0:02:57]} 7. O-O {[%clk 0:02:53]}  e5 {[%clk 0:02:58]} 8. e4 {[%clk 0:02:53]}  exd4 {[%clk 0:02:59]} 9. Nxd4 {[%clk 0:02:53]}  Re8 {[%clk 0:03:00]} 10. Re1 {[%clk 0:02:51]}  Nc5 {[%clk 0:03:00]} 11. h3 {[%clk 0:02:50]}  a5 {[%clk 0:03:00]} 12. Bf4 {[%clk 0:02:23]}  Nfd7 {[%clk 0:02:48]} 13. b3 {[%clk 0:02:18]}  Ne5 {[%clk 0:02:46]} 14. Be3 {[%clk 0:02:17]}  a4 {[%clk 0:02:35]} 15. Rb1 {[%clk 0:02:10]}  axb3 {[%clk 0:02:35]} 16. axb3 {[%clk 0:02:10]}  c6 {[%clk 0:02:34]} 17. Qc2 {[%clk 0:02:02]}  Ned3 {[%clk 0:02:31]} 18. Red1 {[%clk 0:02:01]}  Nb4 {[%clk 0:02:31]} 19. Qd2 {[%clk 0:02:00]}  Qa5 {[%clk 0:02:14]} 20. Nde2 {[%clk 0:01:51]}  Ncd3 {[%clk 0:02:11]} 21. Na4 {[%clk 0:01:31]}  Ra6 {[%clk 0:02:10]} 22. Bd4 {[%clk 0:00:58]}  Bf8 {[%clk 0:01:33]} 23. Bc3 {[%clk 0:00:54]}  b5 {[%clk 0:01:30]} 24. Nb2 {[%clk 0:00:52]}  bxc4 {[%clk 0:01:12]} 25. Nxd3 {[%clk 0:00:47]}  cxd3 {[%clk 0:00:46]} 26. Bxb4 {[%clk 0:00:47]}  Qb5 {[%clk 0:00:44]} 27. Nf4 {[%clk 0:00:43]}  Bb7 {[%clk 0:00:34]} 28. Bc3 {[%clk 0:00:42]}  c5 {[%clk 0:00:31]} 29. Qxd3 {[%clk 0:00:38]}  Qxd3 {[%clk 0:00:31]} 30. Rxd3 {[%clk 0:00:39]}  Bxe4 {[%clk 0:00:30]} 31. Bxe4 {[%clk 0:00:38]}  Rxe4 {[%clk 0:00:30]} 32. Nd5 {[%clk 0:00:38]}  Re2 {[%clk 0:00:28]} 33. Re3 {[%clk 0:00:19]}  Rxe3 {[%clk 0:00:26]} 34. Nxe3 {[%clk 0:00:20]}  f5 {[%clk 0:00:25]} 35. Kf1 {[%clk 0:00:16]}  Kf7 {[%clk 0:00:25]} 36. Ke2 {[%clk 0:00:09]}  Ke6 {[%clk 0:00:26]} 37. Kd3 {[%clk 0:00:08]}  d5 {[%clk 0:00:26]} 38. Bb2 {[%clk 0:00:07]}  Bd6 {[%clk 0:00:20]} 39. Re1 {[%clk 0:00:06]}  Bc7 {[%clk 0:00:05]} 40. Kc2 {[%clk 0:00:05]}  Kd6 {[%clk 0:00:05]} 41. Rd1 {[%clk 0:00:05]}  d4 {[%clk 0:00:06]} 42. Nc4+ {[%clk 0:00:05]}  Kd5 {[%clk 0:00:06]} 43. Re1 {[%clk 0:00:05]}  Ra8 {[%clk 0:00:02]} 44. Re7 {[%clk 0:00:05]}  Bd8 {[%clk 0:00:01]} 45. Rd7+ {[%clk 0:00:05]}  Kc6 {[%clk 0:00:02]} 46. Rxh7 {[%clk 0:00:05]}  Bc7 {[%clk 0:00:02]} 47. Rg7 {[%clk 0:00:05]}  Re8 {[%clk 0:00:03]} 48. Rxg6+ {[%clk 0:00:05]}  Kb5 {[%clk 0:00:03]} 49. Kd2 {[%clk 0:00:04]}  Kb4 {[%clk 0:00:02]} 50. Ba3+ {[%clk 0:00:02]}  Kxb3 {[%clk 0:00:02]} 51. Bxc5 {[%clk 0:00:03]}  Kxc4 {[%clk 0:00:03]} 52. Rc6 {[%clk 0:00:04]}  Ba5+ {[%clk 0:00:02]} 53. Kc1 {[%clk 0:00:03]}  Re1+ {[%clk 0:00:02]} 54. Kc2 {[%clk 0:00:00]}  d3+ {[%clk 0:00:02]} 0-1


[Site "https://www.chess.com"]

[Event "Titled Tuesday Blitz August 22 Early 2023"]
[White "Bacrot, Etienne"]
[Black "Sarana, Alexey"]
[WhiteFideId "605506"]
[BlackFideId "24133795"]
[WhiteElo "2842"]
[BlackElo "3027"]
[Result "0-1"]
[Round "6"]
[TimeControl "180+1"]
[Date "2023.08.22"]
[WhiteClock "0:01:36"]
[BlackClock "0:01:42"]
[Board "13"]

1. e4 {[%clk 0:02:54]}  c5 {[%clk 0:03:00]} 2. Nf3 {[%clk 0:02:54]}  d6 {[%clk 0:03:01]} 3. d4 {[%clk 0:02:54]}  cxd4 {[%clk 0:03:02]} 4. Nxd4 {[%clk 0:02:55]}  Nf6 {[%clk 0:03:02]} 5. Nc3 {[%clk 0:02:55]}  a6 {[%clk 0:03:03]} 6. Rg1 {[%clk 0:02:56]}  b5 {[%clk 0:03:00]} 7. g4 {[%clk 0:02:55]}  Bb7 {[%clk 0:03:01]} 8. Qe2 {[%clk 0:02:53]}  b4 {[%clk 0:02:56]} 9. g5 {[%clk 0:02:53]}  bxc3 {[%clk 0:02:50]} 10. gxf6 {[%clk 0:02:53]}  cxb2 {[%clk 0:02:34]} 11. Bxb2 {[%clk 0:02:45]}  Qa5+ {[%clk 0:02:32]} 12. c3 {[%clk 0:02:36]}  gxf6 {[%clk 0:02:31]} 13. O-O-O {[%clk 0:02:17]}  Qxa2 {[%clk 0:02:14]} 14. Nf5 {[%clk 0:02:16]}  Nd7 {[%clk 0:02:03]} 15. Bh3 {[%clk 0:02:08]}  Rc8 {[%clk 0:01:52]} 16. Rd4 {[%clk 0:01:52]}  Rxc3+ {[%clk 0:01:45]} 17. Kd1 {[%clk 0:01:36]}  Qb1+ {[%clk 0:01:42]} 0-1


[Site "https://www.chess.com"]